[Event "December 5 Late 2023"]
[Site "https://www.chess.com"]
[Date "2023.12.05"]
[Round "2"]
[White "De Souza, Cristiano Gomes"]
[Black "Ventura Bolet, Maxim"]
[Result "0-1"]
[Board "151"]
[TimeControl "180+1"]
[WhiteFideId "2151758"]
[BlackFideId "22238824"]
[WhiteElo "2242"]
[BlackElo "2482"]
[WhiteTeam "BRA"]
[BlackTeam "ESP"]
[WhiteClock "0:00:22"]
[BlackClock "0:00:16"]

1. d4 {[%clk 0:02:59]}  Nf6 {[%clk 0:02:59]} 2. c4 {[%clk 0:02:59]}  d6 {[%clk 0:02:58]} 3. Nf3 {[%clk 0:02:59]}  g6 {[%clk 0:02:58]} 4. Nc3 {[%clk 0:02:59]}  Nbd7 {[%clk 0:02:58]} 5. e4 {[%clk 0:02:59]}  e5 {[%clk 0:02:59]} 6. Be2 {[%clk 0:03:00]}  Bg7 {[%clk 0:02:59]} 7. O-O {[%clk 0:03:00]}  O-O {[%clk 0:02:59]} 8. Be3 {[%clk 0:03:00]}  Re8 {[%clk 0:02:59]} 9. d5 {[%clk 0:02:59]}  Nh5 {[%clk 0:02:59]} 10. Nd2 {[%clk 0:02:58]}  Nf4 {[%clk 0:02:59]} 11. Bf3 {[%clk 0:02:58]}  f5 {[%clk 0:02:38]} 12. b4 {[%clk 0:02:57]}  Nd3 {[%clk 0:02:25]} 13. exf5 {[%clk 0:02:36]}  gxf5 {[%clk 0:02:23]} 14. Qb3 {[%clk 0:02:25]}  f4 {[%clk 0:02:08]} 15. Nde4 {[%clk 0:02:15]}  fxe3 {[%clk 0:02:00]} 16. fxe3 {[%clk 0:02:15]}  a5 {[%clk 0:01:44]} 17. a3 {[%clk 0:02:14]}  Bh6 {[%clk 0:01:37]} 18. Nd1 {[%clk 0:02:12]}  axb4 {[%clk 0:01:21]} 19. Qxd3 {[%clk 0:02:12]}  bxa3 {[%clk 0:01:17]} 20. Rxa3 {[%clk 0:02:10]}  Rxa3 {[%clk 0:01:17]} 21. Qxa3 {[%clk 0:02:10]}  Rf8 {[%clk 0:01:06]} 22. Ndf2 {[%clk 0:02:09]}  Nf6 {[%clk 0:00:59]} 23. Nxf6+ {[%clk 0:02:05]}  Qxf6 {[%clk 0:00:59]} 24. Ne4 {[%clk 0:02:05]}  Qg6 {[%clk 0:00:52]} 25. c5 {[%clk 0:02:05]}  Bf5 {[%clk 0:00:50]} 26. Ng3 {[%clk 0:02:05]}  Bd3 {[%clk 0:00:48]} 27. Re1 {[%clk 0:01:30]}  e4 {[%clk 0:00:48]} 28. Bh5 {[%clk 0:01:25]}  Qf6 {[%clk 0:00:33]} 29. Qb4 {[%clk 0:01:10]}  Bxe3+ {[%clk 0:00:28]} 30. Kh1 {[%clk 0:01:01]}  Bxc5 {[%clk 0:00:26]} 31. Qxb7 {[%clk 0:01:00]}  Qf2 {[%clk 0:00:20]} 32. Ra1 {[%clk 0:00:22]}  Bf1 {[%clk 0:00:16]} 0-1

[Event "December 5 Late 2023"]
[Site "https://www.chess.com"]
[Date "2023.12.05"]
[Round "2"]
[White "Tabuenca Mendataurigoitia, Daniel"]
[Black "Clawitter, Craig"]
[Result "1-0"]
[Board "152"]
[TimeControl "180+1"]
[WhiteFideId "24563617"]
[BlackFideId "2023105"]
[WhiteElo "2481"]
[BlackElo "2238"]
[WhiteTeam "ESP"]
[BlackTeam "USA"]
[WhiteClock "0:01:16"]
[BlackClock "0:00:12"]

1. Nf3 {[%clk 0:03:00]}  Nf6 {[%clk 0:02:58]} 2. g3 {[%clk 0:03:01]}  e6 {[%clk 0:02:57]} 3. Bg2 {[%clk 0:03:00]}  d5 {[%clk 0:02:57]} 4. O-O {[%clk 0:03:01]}  Be7 {[%clk 0:02:58]} 5. b3 {[%clk 0:02:59]}  d4 {[%clk 0:02:56]} 6. Bb2 {[%clk 0:02:58]}  c5 {[%clk 0:02:56]} 7. e3 {[%clk 0:02:52]}  Nc6 {[%clk 0:02:56]} 8. exd4 {[%clk 0:02:51]}  cxd4 {[%clk 0:02:57]} 9. c3 {[%clk 0:02:51]}  e5 {[%clk 0:02:56]} 10. cxd4 {[%clk 0:02:50]}  exd4 {[%clk 0:02:56]} 11. d3 {[%clk 0:02:49]}  O-O {[%clk 0:02:55]} 12. Nbd2 {[%clk 0:02:49]}  Bf5 {[%clk 0:02:46]} 13. Nc4 {[%clk 0:02:47]}  h6 {[%clk 0:02:42]} 14. a3 {[%clk 0:02:46]}  a5 {[%clk 0:02:42]} 15. Rc1 {[%clk 0:02:45]}  Re8 {[%clk 0:02:40]} 16. Qd2 {[%clk 0:02:41]}  Rc8 {[%clk 0:02:32]} 17. Rfe1 {[%clk 0:02:39]}  b5 {[%clk 0:02:17]} 18. Nce5 {[%clk 0:02:38]}  Nxe5 {[%clk 0:02:17]} 19. Nxe5 {[%clk 0:02:37]}  Rxc1 {[%clk 0:01:56]} 20. Rxc1 {[%clk 0:02:38]}  Bxa3 {[%clk 0:01:34]} 21. Nc6 {[%clk 0:02:35]}  Qd6 {[%clk 0:01:34]} 22. Bxa3 {[%clk 0:02:31]}  Qxa3 {[%clk 0:01:34]} 23. Nxd4 {[%clk 0:02:31]}  Bd7 {[%clk 0:01:25]} 24. Qc3 {[%clk 0:02:30]}  Rc8 {[%clk 0:01:18]} 25. Nc6 {[%clk 0:02:28]}  Bxc6 {[%clk 0:01:11]} 26. Bxc6 {[%clk 0:02:26]}  Nd5 {[%clk 0:01:11]} 27. Qd2 {[%clk 0:02:22]}  Nb4 {[%clk 0:01:05]} 28. Qe3 {[%clk 0:02:11]}  g6 {[%clk 0:00:20]} 29. Rc5 {[%clk 0:01:59]}  Kh7 {[%clk 0:00:18]} 30. Bxb5 {[%clk 0:01:55]}  Rxc5 {[%clk 0:00:18]} 31. Qxc5 {[%clk 0:01:35]}  Qxb3 {[%clk 0:00:18]} 32. Bc4 {[%clk 0:01:32]}  Qd1+ {[%clk 0:00:18]} 33. Kg2 {[%clk 0:01:32]}  Nxd3 {[%clk 0:00:18]} 34. Bxd3 {[%clk 0:01:26]}  Qxd3 {[%clk 0:00:18]} 35. Qxa5 {[%clk 0:01:27]}  Qe4+ {[%clk 0:00:18]} 36. Kg1 {[%clk 0:01:26]}  Qb1+ {[%clk 0:00:17]} 37. Kg2 {[%clk 0:01:26]}  Qe4+ {[%clk 0:00:17]} 38. Kh3 {[%clk 0:01:25]}  Qf5+ {[%clk 0:00:16]} 39. Qxf5 {[%clk 0:01:23]}  gxf5 {[%clk 0:00:17]} 40. Kg2 {[%clk 0:01:20]}  Kg6 {[%clk 0:00:17]} 41. Kf3 {[%clk 0:01:20]}  Kg5 {[%clk 0:00:17]} 42. h4+ {[%clk 0:01:20]}  Kf6 {[%clk 0:00:18]} 43. Kf4 {[%clk 0:01:20]}  Kg6 {[%clk 0:00:18]} 44. Ke5 {[%clk 0:01:19]}  f6+ {[%clk 0:00:17]} 45. Ke6 {[%clk 0:01:19]}  f4 {[%clk 0:00:17]} 46. gxf4 {[%clk 0:01:17]}  h5 {[%clk 0:00:17]} 47. f5+ {[%clk 0:01:16]}  Kg7 {[%clk 0:00:12]} 48. Ke7 {[%clk 0:01:16]} 1-0

[Event "December 5 Late 2023"]
[Site "https://www.chess.com"]
[Date "2023.12.05"]
[Round "2"]
[White "Floresvillar Gonzalez, Luis Migu"]
[Black "Keleberda, Tymur"]
[Result "0-1"]
[Board "154"]
[TimeControl "180+1"]
[WhiteFideId "5100542"]
[BlackFideId "14174294"]
[WhiteElo "2218"]
[BlackElo "2478"]
[WhiteTeam "MEX"]
[BlackTeam "CAN"]
[WhiteClock "0:01:26"]
[BlackClock "0:01:19"]

1. e4 {[%clk 0:02:26]}  c5 {[%clk 0:01:51]} 2. d4 {[%clk 0:02:25]}  cxd4 {[%clk 0:01:50]} 3. c3 {[%clk 0:02:25]}  dxc3 {[%clk 0:01:51]} 4. Nxc3 {[%clk 0:02:25]}  e6 {[%clk 0:01:50]} 5. Bc4 {[%clk 0:02:24]}  a6 {[%clk 0:01:50]} 6. Nf3 {[%clk 0:02:23]}  Nc6 {[%clk 0:01:50]} 7. Qe2 {[%clk 0:02:23]}  Nge7 {[%clk 0:01:51]} 8. Bg5 {[%clk 0:02:22]}  h6 {[%clk 0:01:50]} 9. Be3 {[%clk 0:02:21]}  Ng6 {[%clk 0:01:48]} 10. O-O {[%clk 0:02:19]}  b5 {[%clk 0:01:49]} 11. Bb3 {[%clk 0:02:18]}  Bb7 {[%clk 0:01:43]} 12. Rfd1 {[%clk 0:02:18]}  Bb4 {[%clk 0:01:39]} 13. Rac1 {[%clk 0:02:16]}  Qe7 {[%clk 0:01:39]} 14. Nd5 {[%clk 0:02:14]}  exd5 {[%clk 0:01:39]} 15. exd5 {[%clk 0:02:14]}  Nce5 {[%clk 0:01:37]} 16. d6 {[%clk 0:02:06]}  Nxf3+ {[%clk 0:01:34]} 17. gxf3 {[%clk 0:01:44]}  Nf4 {[%clk 0:01:19]} 18. Qf1 {[%clk 0:01:38]}  Qg5+ {[%clk 0:01:19]} 19. Kh1 {[%clk 0:01:26]}  Bxf3+ {[%clk 0:01:19]} 0-1

[Event "December 5 Late 2023"]
[Site "https://www.chess.com"]
[Date "2023.12.05"]
[Round "2"]
[White "Coca, Cristi-Iulian"]
[Black "Einarsson, Halldor Gretar"]
[Result "1-0"]
[Board "155"]
[TimeControl "180+1"]
[WhiteFideId "1237004"]
[BlackFideId "2300150"]
[WhiteElo "2473"]
[BlackElo "2218"]
[WhiteTeam "ROU"]
[BlackTeam "ISL"]
[WhiteClock "0:00:46"]
[BlackClock "0:00:00"]

1. e4 {[%clk 0:02:55]}  c5 {[%clk 0:02:59]} 2. c3 {[%clk 0:02:56]}  Nf6 {[%clk 0:02:57]} 3. e5 {[%clk 0:02:56]}  Nd5 {[%clk 0:02:56]} 4. Nf3 {[%clk 0:02:57]}  Nc6 {[%clk 0:02:52]} 5. Bc4 {[%clk 0:02:56]}  Nb6 {[%clk 0:02:51]} 6. Bb3 {[%clk 0:02:56]}  d5 {[%clk 0:02:44]} 7. exd6 {[%clk 0:02:57]}  Qxd6 {[%clk 0:02:38]} 8. O-O {[%clk 0:02:57]}  c4 {[%clk 0:02:28]} 9. Bc2 {[%clk 0:02:57]}  Bg4 {[%clk 0:02:26]} 10. h3 {[%clk 0:02:57]}  Bh5 {[%clk 0:02:26]} 11. Re1 {[%clk 0:02:57]}  e6 {[%clk 0:02:13]} 12. b3 {[%clk 0:02:55]}  Be7 {[%clk 0:02:09]} 13. Na3 {[%clk 0:02:50]}  Qc5 {[%clk 0:01:52]} 14. bxc4 {[%clk 0:02:43]}  Nxc4 {[%clk 0:01:48]} 15. d4 {[%clk 0:02:42]}  Qa5 {[%clk 0:01:07]} 16. Nxc4 {[%clk 0:02:35]}  Qxc3 {[%clk 0:01:06]} 17. Nb2 {[%clk 0:02:34]}  Bxf3 {[%clk 0:01:02]} 18. gxf3 {[%clk 0:02:33]}  Nxd4 {[%clk 0:01:00]} 19. Be4 {[%clk 0:02:24]}  Rd8 {[%clk 0:00:50]} 20. Re3 {[%clk 0:02:14]}  Qc5 {[%clk 0:00:42]} 21. Rd3 {[%clk 0:02:12]}  O-O {[%clk 0:00:35]} 22. Be3 {[%clk 0:02:12]}  Bf6 {[%clk 0:00:26]} 23. Rc1 {[%clk 0:02:11]}  Qb4 {[%clk 0:00:20]} 24. Bxd4 {[%clk 0:01:26]}  Bxd4 {[%clk 0:00:16]} 25. Rc4 {[%clk 0:01:26]}  Qxb2 {[%clk 0:00:15]} 26. Rcxd4 {[%clk 0:01:25]}  Rxd4 {[%clk 0:00:13]} 27. Rxd4 {[%clk 0:01:26]}  Qxa2 {[%clk 0:00:09]} 28. Bxb7 {[%clk 0:01:26]}  Qb2 {[%clk 0:00:09]} 29. Be4 {[%clk 0:01:25]}  a5 {[%clk 0:00:09]} 30. Qa4 {[%clk 0:01:22]}  g6 {[%clk 0:00:09]} 31. Kg2 {[%clk 0:01:21]}  Qc3 {[%clk 0:00:09]} 32. Rd3 {[%clk 0:01:20]}  Qc5 {[%clk 0:00:08]} 33. Ra3 {[%clk 0:01:17]}  Qg5+ {[%clk 0:00:07]} 34. Kh1 {[%clk 0:01:13]}  Rc8 {[%clk 0:00:05]} 35. Ra1 {[%clk 0:01:10]}  Rc3 {[%clk 0:00:04]} 36. Rg1 {[%clk 0:00:58]}  Qe5 {[%clk 0:00:03]} 37. Rg3 {[%clk 0:00:55]}  Qc5 {[%clk 0:00:02]} 38. h4 {[%clk 0:00:51]}  Qxf2 {[%clk 0:00:02]} 39. Rg1 {[%clk 0:00:47]}  Qxh4+ {[%clk 0:00:02]} 40. Kg2 {[%clk 0:00:48]}  Qg5+ {[%clk 0:00:01]} 41. Kf2 {[%clk 0:00:46]}  Qd2+ {[%clk 0:00:00]} 42. Kg3 {[%clk 0:00:46]} 1-0

[Event "December 5 Late 2023"]
[Site "https://www.chess.com"]
[Date "2023.12.05"]
[Round "2"]
[White "Sroczynski, Maciej"]
[Black "Narva, Triin"]
[Result "1-0"]
[Board "158"]
[TimeControl "180+1"]
[WhiteFideId "1121472"]
[BlackFideId "4502680"]
[WhiteElo "2465"]
[BlackElo "2205"]
[WhiteTeam "POL"]
[BlackTeam "EST"]
[WhiteClock "0:00:18"]
[BlackClock "0:00:00"]

1. d4 {[%clk 0:02:56]}  g6 {[%clk 0:02:53]} 2. Nc3 {[%clk 0:02:55]}  Bg7 {[%clk 0:02:54]} 3. e4 {[%clk 0:02:55]}  c6 {[%clk 0:02:54]} 4. h4 {[%clk 0:02:50]}  h5 {[%clk 0:02:54]} 5. d5 {[%clk 0:02:42]}  cxd5 {[%clk 0:02:54]} 6. exd5 {[%clk 0:02:41]}  d6 {[%clk 0:02:54]} 7. Nf3 {[%clk 0:02:39]}  Nf6 {[%clk 0:02:54]} 8. Bg5 {[%clk 0:02:29]}  Qb6 {[%clk 0:02:44]} 9. Qd2 {[%clk 0:02:24]}  Bf5 {[%clk 0:02:33]} 10. O-O-O {[%clk 0:02:16]}  Ne4 {[%clk 0:02:23]} 11. Qe3 {[%clk 0:02:13]}  Qb4 {[%clk 0:01:47]} 12. Nd4 {[%clk 0:02:08]}  Nxg5 {[%clk 0:01:06]} 13. Nxf5 {[%clk 0:01:53]}  Be5 {[%clk 0:01:06]} 14. Bb5+ {[%clk 0:01:44]}  Nd7 {[%clk 0:00:48]} 15. Nd4 {[%clk 0:01:40]}  Nh7 {[%clk 0:00:27]} 16. f4 {[%clk 0:01:37]}  Bg7 {[%clk 0:00:23]} 17. Rhe1 {[%clk 0:01:35]}  O-O-O {[%clk 0:00:17]} 18. a3 {[%clk 0:01:33]}  Qc5 {[%clk 0:00:08]} 19. Rd3 {[%clk 0:01:04]}  a6 {[%clk 0:00:06]} 20. Ba4 {[%clk 0:00:57]}  Nb6 {[%clk 0:00:04]} 21. Bb3 {[%clk 0:00:54]}  Rd7 {[%clk 0:00:01]} 22. Ne4 {[%clk 0:00:50]}  Qa5 {[%clk 0:00:01]} 23. f5 {[%clk 0:00:45]}  Kb8 {[%clk 0:00:02]} 24. fxg6 {[%clk 0:00:44]}  fxg6 {[%clk 0:00:02]} 25. Ne6 {[%clk 0:00:43]}  Be5 {[%clk 0:00:02]} 26. Nd2 {[%clk 0:00:34]}  Nf6 {[%clk 0:00:02]} 27. Nf3 {[%clk 0:00:33]}  Bg3 {[%clk 0:00:02]} 28. Red1 {[%clk 0:00:30]}  Bxh4 {[%clk 0:00:01]} 29. Nxh4 {[%clk 0:00:28]}  Ng4 {[%clk 0:00:01]} 30. Qd4 {[%clk 0:00:26]}  Ne5 {[%clk 0:00:01]} 31. Rc3 {[%clk 0:00:23]}  Rc8 {[%clk 0:00:02]} 32. Rxc8+ {[%clk 0:00:22]}  Kxc8 {[%clk 0:00:03]} 33. Nf3 {[%clk 0:00:22]}  Kb8 {[%clk 0:00:02]} 34. Nxe5 {[%clk 0:00:22]}  dxe5 {[%clk 0:00:03]} 35. Qxe5+ {[%clk 0:00:22]}  Ka7 {[%clk 0:00:04]} 36. Qe3 {[%clk 0:00:21]}  Rd6 {[%clk 0:00:03]} 37. Kb1 {[%clk 0:00:19]}  Kb8 {[%clk 0:00:02]} 38. Nf4 {[%clk 0:00:19]}  Rd7 {[%clk 0:00:02]} 39. Nxg6 {[%clk 0:00:18]}  Nxd5 {[%clk 0:00:00]} 40. Qe5+ {[%clk 0:00:18]} 1-0

[Event "December 5 Late 2023"]
[Site "https://www.chess.com"]
[Date "2023.12.05"]
[Round "2"]
[White "Djabri, Massinas"]
[Black "Martine, Jean-Christophe"]
[Result "1-0"]
[Board "164"]
[TimeControl "180+1"]
[WhiteFideId "7905726"]
[BlackFideId "603651"]
[WhiteElo "2450"]
[BlackElo "2182"]
[WhiteTeam "ALG"]
[BlackTeam "FRA"]
[WhiteClock "0:00:33"]
[BlackClock "0:00:48"]

1. d4 {[%clk 0:03:00]}  e5 {[%clk 0:02:57]} 2. dxe5 {[%clk 0:03:00]}  d6 {[%clk 0:02:57]} 3. exd6 {[%clk 0:02:59]}  Bxd6 {[%clk 0:02:58]} 4. e4 {[%clk 0:02:59]}  Qe7 {[%clk 0:02:57]} 5. Nc3 {[%clk 0:02:58]}  Nf6 {[%clk 0:02:57]} 6. Bb5+ {[%clk 0:02:54]}  c6 {[%clk 0:02:56]} 7. Bd3 {[%clk 0:02:55]}  Nbd7 {[%clk 0:02:52]} 8. Nf3 {[%clk 0:02:54]}  Nc5 {[%clk 0:02:48]} 9. O-O {[%clk 0:02:54]}  Bg4 {[%clk 0:02:48]} 10. h3 {[%clk 0:02:51]}  Nxd3 {[%clk 0:02:43]} 11. Qxd3 {[%clk 0:02:47]}  O-O-O {[%clk 0:02:33]} 12. Qe3 {[%clk 0:02:45]}  Bxf3 {[%clk 0:02:30]} 13. Qxf3 {[%clk 0:02:46]}  Kb8 {[%clk 0:02:27]} 14. Bf4 {[%clk 0:02:39]}  Be5 {[%clk 0:02:23]} 15. Bxe5+ {[%clk 0:02:35]}  Qxe5 {[%clk 0:02:24]} 16. Rad1 {[%clk 0:02:35]}  g5 {[%clk 0:02:22]} 17. Rxd8+ {[%clk 0:02:25]}  Rxd8 {[%clk 0:02:21]} 18. Qg3 {[%clk 0:02:26]}  Re8 {[%clk 0:02:15]} 19. f4 {[%clk 0:02:04]}  Qd4+ {[%clk 0:02:14]} 20. Kh2 {[%clk 0:01:57]}  g4 {[%clk 0:01:46]} 21. e5 {[%clk 0:01:45]}  Ne4 {[%clk 0:01:41]} 22. Nxe4 {[%clk 0:01:39]}  Qxe4 {[%clk 0:01:42]} 23. Qxg4 {[%clk 0:01:37]}  Qxc2 {[%clk 0:01:42]} 24. Rd1 {[%clk 0:01:33]}  a6 {[%clk 0:01:27]} 25. Rd7 {[%clk 0:01:33]}  Qxb2 {[%clk 0:01:23]} 26. Rxf7 {[%clk 0:01:31]}  Rd8 {[%clk 0:01:22]} 27. Rxh7 {[%clk 0:01:28]}  c5 {[%clk 0:01:21]} 28. e6 {[%clk 0:01:25]}  Qf6 {[%clk 0:01:20]} 29. Qf3 {[%clk 0:01:10]}  Qb2 {[%clk 0:01:03]} 30. Rd7 {[%clk 0:00:50]}  Re8 {[%clk 0:01:02]} 31. e7 {[%clk 0:00:48]}  Qb6 {[%clk 0:00:53]} 32. Qd5 {[%clk 0:00:37]}  Ka7 {[%clk 0:00:52]} 33. f5 {[%clk 0:00:35]}  Qf6 {[%clk 0:00:48]} 34. Qxb7# {[%clk 0:00:33]} 1-0

[Event "December 5 Late 2023"]
[Site "https://www.chess.com"]
[Date "2023.12.05"]
[Round "2"]
[White "Kraiouchkine, Nikita"]
[Black "Petersson, Kjell"]
[Result "1-0"]
[Board "166"]
[TimeControl "180+1"]
[WhiteFideId "2607140"]
[BlackFideId "1705148"]
[WhiteElo "2448"]
[BlackElo "2170"]
[WhiteTeam "CAN"]
[BlackTeam "SWE"]
[WhiteClock "0:00:08"]
[BlackClock "0:00:00"]

1. e4 {[%clk 0:02:55]}  c5 {[%clk 0:03:00]} 2. Nf3 {[%clk 0:02:47]}  d6 {[%clk 0:03:00]} 3. d4 {[%clk 0:02:47]}  cxd4 {[%clk 0:03:01]} 4. Nxd4 {[%clk 0:02:47]}  Nf6 {[%clk 0:03:01]} 5. Nc3 {[%clk 0:02:41]}  g6 {[%clk 0:03:02]} 6. Be3 {[%clk 0:02:27]}  Bg7 {[%clk 0:03:02]} 7. f3 {[%clk 0:02:27]}  O-O {[%clk 0:03:02]} 8. Qd2 {[%clk 0:02:27]}  Nc6 {[%clk 0:03:02]} 9. O-O-O {[%clk 0:02:27]}  d5 {[%clk 0:03:02]} 10. Kb1 {[%clk 0:02:27]}  e6 {[%clk 0:02:33]} 11. g4 {[%clk 0:02:11]}  Nxd4 {[%clk 0:02:15]} 12. Bxd4 {[%clk 0:01:42]}  dxe4 {[%clk 0:02:13]} 13. g5 {[%clk 0:01:37]}  Nh5 {[%clk 0:02:00]} 14. Nxe4 {[%clk 0:01:18]}  Qxd4 {[%clk 0:01:58]} 15. Qxd4 {[%clk 0:01:17]}  Bxd4 {[%clk 0:01:59]} 16. Rxd4 {[%clk 0:01:17]}  b6 {[%clk 0:01:56]} 17. Nd6 {[%clk 0:01:05]}  e5 {[%clk 0:01:47]} 18. Rd5 {[%clk 0:01:02]}  Rd8 {[%clk 0:01:38]} 19. Bc4 {[%clk 0:00:43]}  Be6 {[%clk 0:01:27]} 20. Rd2 {[%clk 0:00:44]}  Rxd6 {[%clk 0:01:19]} 21. Rxd6 {[%clk 0:00:43]}  Bxc4 {[%clk 0:01:20]} 22. Rd7 {[%clk 0:00:41]}  Be6 {[%clk 0:01:19]} 23. Rc7 {[%clk 0:00:38]}  Nf4 {[%clk 0:01:16]} 24. Re1 {[%clk 0:00:38]}  Nd5 {[%clk 0:01:11]} 25. Rc6 {[%clk 0:00:23]}  Nb4 {[%clk 0:01:08]} 26. Rd6 {[%clk 0:00:22]}  Bf5 {[%clk 0:00:58]} 27. Rxe5 {[%clk 0:00:20]}  Bxc2+ {[%clk 0:00:53]} 28. Ka1 {[%clk 0:00:20]}  Bf5 {[%clk 0:00:51]} 29. a3 {[%clk 0:00:19]}  Nc2+ {[%clk 0:00:46]} 30. Ka2 {[%clk 0:00:18]}  Rc8 {[%clk 0:00:45]} 31. b4 {[%clk 0:00:15]}  Be6+ {[%clk 0:00:40]} 32. Kb2 {[%clk 0:00:15]}  Kg7 {[%clk 0:00:31]} 33. Re2 {[%clk 0:00:14]}  Bf5 {[%clk 0:00:28]} 34. Rd5 {[%clk 0:00:15]}  a5 {[%clk 0:00:23]} 35. Rxf5 {[%clk 0:00:09]}  gxf5 {[%clk 0:00:17]} 36. Rxc2 {[%clk 0:00:09]}  Rxc2+ {[%clk 0:00:16]} 37. Kxc2 {[%clk 0:00:09]}  f4 {[%clk 0:00:13]} 38. bxa5 {[%clk 0:00:08]}  bxa5 {[%clk 0:00:13]} 39. Kb3 {[%clk 0:00:09]}  Kg6 {[%clk 0:00:13]} 40. Ka4 {[%clk 0:00:08]}  Kxg5 {[%clk 0:00:13]} 41. Kxa5 {[%clk 0:00:09]}  Kf5 {[%clk 0:00:09]} 42. Kb6 {[%clk 0:00:09]}  Ke5 {[%clk 0:00:08]} 43. a4 {[%clk 0:00:05]}  Kd4 {[%clk 0:00:07]} 44. a5 {[%clk 0:00:06]}  Ke3 {[%clk 0:00:07]} 45. a6 {[%clk 0:00:07]}  Kxf3 {[%clk 0:00:08]} 46. a7 {[%clk 0:00:08]}  Kf2 {[%clk 0:00:07]} 47. a8=Q {[%clk 0:00:08]}  f3 {[%clk 0:00:08]} 48. Qe4 {[%clk 0:00:08]}  Kg2 {[%clk 0:00:06]} 49. Qg4+ {[%clk 0:00:09]}  Kf2 {[%clk 0:00:06]} 50. Kc5 {[%clk 0:00:09]}  f5 {[%clk 0:00:02]} 51. Qxf5 {[%clk 0:00:09]}  Ke2 {[%clk 0:00:01]} 52. Qe4+ {[%clk 0:00:08]}  Kf2 {[%clk 0:00:01]} 53. Kd4 {[%clk 0:00:08]}  Kg2 {[%clk 0:00:00]} 54. Qg4+ {[%clk 0:00:08]} 1-0

[Event "December 5 Late 2023"]
[Site "https://www.chess.com"]
[Date "2023.12.05"]
[Round "2"]
[White "DCacheiro"]
[Black "Vanek, Tomas"]
[Result "1-0"]
[Board "167"]
[TimeControl "180+1"]
[BlackFideId "313459"]
[WhiteElo "2447"]
[BlackElo "2164"]
[BlackTeam "CZE"]
[WhiteClock "0:00:14"]
[BlackClock "0:00:16"]

1. e4 {[%clk 0:03:00]}  c5 {[%clk 0:02:56]} 2. Nf3 {[%clk 0:03:01]}  Nc6 {[%clk 0:02:56]} 3. d4 {[%clk 0:03:00]}  cxd4 {[%clk 0:02:56]} 4. Nxd4 {[%clk 0:03:01]}  Nf6 {[%clk 0:02:57]} 5. Nc3 {[%clk 0:03:01]}  e5 {[%clk 0:02:57]} 6. Ndb5 {[%clk 0:03:02]}  d6 {[%clk 0:02:57]} 7. Nd5 {[%clk 0:03:02]}  Nxd5 {[%clk 0:02:56]} 8. exd5 {[%clk 0:03:03]}  Nb8 {[%clk 0:02:57]} 9. a4 {[%clk 0:03:03]}  a6 {[%clk 0:02:56]} 10. Na3 {[%clk 0:03:03]}  Be7 {[%clk 0:02:26]} 11. Nc4 {[%clk 0:03:02]}  Bf5 {[%clk 0:02:21]} 12. a5 {[%clk 0:02:58]}  Nd7 {[%clk 0:02:18]} 13. Be3 {[%clk 0:02:56]}  O-O {[%clk 0:02:14]} 14. Bd3 {[%clk 0:02:53]}  e4 {[%clk 0:02:13]} 15. Be2 {[%clk 0:02:53]}  Rc8 {[%clk 0:02:12]} 16. O-O {[%clk 0:02:49]}  Kh8 {[%clk 0:01:47]} 17. c3 {[%clk 0:02:48]}  Rg8 {[%clk 0:01:38]} 18. Bd4 {[%clk 0:02:45]}  Rxc4 {[%clk 0:01:05]} 19. Bxc4 {[%clk 0:02:43]}  Bf6 {[%clk 0:01:03]} 20. f4 {[%clk 0:02:27]}  g5 {[%clk 0:00:53]} 21. Qh5 {[%clk 0:01:58]}  Bxd4+ {[%clk 0:00:49]} 22. cxd4 {[%clk 0:01:59]}  Qf6 {[%clk 0:00:47]} 23. Rad1 {[%clk 0:01:51]}  e3 {[%clk 0:00:43]} 24. Qe2 {[%clk 0:01:39]}  gxf4 {[%clk 0:00:37]} 25. Rxf4 {[%clk 0:01:40]}  Qg5 {[%clk 0:00:37]} 26. g3 {[%clk 0:01:01]}  Bg4 {[%clk 0:00:34]} 27. Rxg4 {[%clk 0:00:52]}  Qxg4 {[%clk 0:00:34]} 28. Qxg4 {[%clk 0:00:44]}  Rxg4 {[%clk 0:00:34]} 29. Kf1 {[%clk 0:00:43]}  Re4 {[%clk 0:00:29]} 30. Ke2 {[%clk 0:00:41]}  Nf6 {[%clk 0:00:27]} 31. Rd3 {[%clk 0:00:18]}  Kg7 {[%clk 0:00:26]} 32. b3 {[%clk 0:00:18]}  Ng4 {[%clk 0:00:24]} 33. h3 {[%clk 0:00:16]}  Nh6 {[%clk 0:00:21]} 34. Rxe3 {[%clk 0:00:15]}  Rxd4 {[%clk 0:00:21]} 35. Re7 {[%clk 0:00:15]}  Nf5 {[%clk 0:00:19]} 36. Rxb7 {[%clk 0:00:14]}  Nxg3+ {[%clk 0:00:18]} 37. Kf3 {[%clk 0:00:15]}  Nf5 {[%clk 0:00:18]} 38. Bxa6 {[%clk 0:00:12]}  Rb4 {[%clk 0:00:17]} 39. Rxb4 {[%clk 0:00:11]}  Ne7 {[%clk 0:00:17]} 40. Bc4 {[%clk 0:00:11]}  Nf5 {[%clk 0:00:17]} 41. a6 {[%clk 0:00:12]}  Nd4+ {[%clk 0:00:17]} 42. Ke4 {[%clk 0:00:12]}  Nc2 {[%clk 0:00:16]} 43. Rb7 {[%clk 0:00:13]}  Kg6 {[%clk 0:00:15]} 44. a7 {[%clk 0:00:14]}  h5 {[%clk 0:00:16]} 45. a8=Q {[%clk 0:00:14]}  h4 {[%clk 0:00:16]} 46. Qg8+ {[%clk 0:00:15]}  Kf6 {[%clk 0:00:16]} 47. Rxf7# {[%clk 0:00:14]} 1-0

[Event "December 5 Late 2023"]
[Site "https://www.chess.com"]
[Date "2023.12.05"]
[Round "2"]
[White "Clarke, Adani"]
[Black "Filipovic, Slobodan J"]
[Result "0-1"]
[Board "170"]
[TimeControl "180+1"]
[WhiteFideId "7402082"]
[BlackFideId "939633"]
[WhiteElo "2151"]
[BlackElo "2444"]
[WhiteTeam "JAM"]
[BlackTeam "SRB"]
[WhiteClock "0:00:00"]
[BlackClock "0:00:54"]

1. d4 {[%clk 0:03:00]}  Nf6 {[%clk 0:02:57]} 2. c4 {[%clk 0:02:57]}  e6 {[%clk 0:02:57]} 3. Nc3 {[%clk 0:02:56]}  Bb4 {[%clk 0:02:55]} 4. f3 {[%clk 0:02:56]}  c5 {[%clk 0:02:51]} 5. d5 {[%clk 0:02:54]}  b5 {[%clk 0:02:50]} 6. e4 {[%clk 0:02:50]}  bxc4 {[%clk 0:02:47]} 7. Bxc4 {[%clk 0:02:48]}  d6 {[%clk 0:02:47]} 8. Ne2 {[%clk 0:02:46]}  O-O {[%clk 0:02:47]} 9. O-O {[%clk 0:02:46]}  Ba6 {[%clk 0:02:46]} 10. Bxa6 {[%clk 0:02:38]}  Nxa6 {[%clk 0:02:47]} 11. Bg5 {[%clk 0:02:37]}  h6 {[%clk 0:02:41]} 12. Bh4 {[%clk 0:02:27]}  e5 {[%clk 0:02:41]} 13. Bf2 {[%clk 0:02:20]}  c4 {[%clk 0:02:41]} 14. Ng3 {[%clk 0:02:19]}  g6 {[%clk 0:02:39]} 15. Qd2 {[%clk 0:02:08]}  Kh7 {[%clk 0:02:36]} 16. Be3 {[%clk 0:02:08]}  Bc5 {[%clk 0:02:35]} 17. f4 {[%clk 0:02:00]}  Qb6 {[%clk 0:02:31]} 18. Bxc5 {[%clk 0:01:58]}  Qxc5+ {[%clk 0:02:31]} 19. Kh1 {[%clk 0:01:59]}  Rae8 {[%clk 0:02:21]} 20. fxe5 {[%clk 0:01:56]}  Ng4 {[%clk 0:02:18]} 21. exd6 {[%clk 0:01:54]}  Qxd6 {[%clk 0:02:16]} 22. Qe2 {[%clk 0:01:47]}  h5 {[%clk 0:02:14]} 23. Rfe1 {[%clk 0:01:27]}  Nc5 {[%clk 0:02:11]} 24. Qxc4 {[%clk 0:01:26]}  h4 {[%clk 0:02:08]} 25. Nf1 {[%clk 0:01:22]}  Qb6 {[%clk 0:01:56]} 26. h3 {[%clk 0:01:10]}  Nf2+ {[%clk 0:01:50]} 27. Kh2 {[%clk 0:01:07]}  Qd6+ {[%clk 0:01:43]} 28. e5 {[%clk 0:01:04]}  Rxe5 {[%clk 0:01:42]} 29. Rxe5 {[%clk 0:01:04]}  Qxe5+ {[%clk 0:01:42]} 30. Kg1 {[%clk 0:01:05]}  Ncd3 {[%clk 0:01:30]} 31. Qxh4+ {[%clk 0:00:57]}  Kg7 {[%clk 0:01:30]} 32. Qg3 {[%clk 0:00:51]}  Qf6 {[%clk 0:01:25]} 33. d6 {[%clk 0:00:32]}  Rd8 {[%clk 0:01:23]} 34. Nd5 {[%clk 0:00:20]}  Qxb2 {[%clk 0:01:20]} 35. Rd1 {[%clk 0:00:10]}  Qd4 {[%clk 0:01:18]} 36. Rd2 {[%clk 0:00:07]}  Qxd5 {[%clk 0:01:15]} 37. Qxf2 {[%clk 0:00:05]}  Qxd6 {[%clk 0:01:05]} 38. Qe3 {[%clk 0:00:00]}  Qb6 {[%clk 0:00:54]} 0-1